fUSD/lending_fUSD_20260613
["ID","MTS","AMOUNT","RATE_DAILY","PERIOD"]
[424954339,1781345454000,-392.0,8.656e-05,2]
[424954348,1781345454000,-21263.1929507,8.812e-05,2]
[424954340,1781345454000,-190.72,8.676e-05,2]
[424954344,1781345454000,-572.99,8.73e-05,2]
[424954343,1781345454000,-152.46,8.719e-05,2]
[424954342,1781345454000,-151.0,8.699e-05,2]
[424954345,1781345454000,-500.0,8.79e-05,2]
[424954346,1781345454000,-384.0,8.803e-05,2]
[424954347,1781345454000,-644.12,8.806e-05,2]
[424954349,1781345454000,-377.0,8.831e-05,2]
[424954327,1781345454000,-300.0,8.556e-05,2]
[424954355,1781345454000,-154.76273732,8.889e-05,2]
[424954338,1781345454000,-161.28,8.623e-05,2]
[424954326,1781345454000,-300.0,8.556e-05,2]
[424954367,1781345454000,-27320.50455962,9.231e-05,2]
[424954321,1781345454000,-392.0,8.547e-05,2]
[424954353,1781345454000,-151.0,8.886e-05,2]
[424954304,1781345454000,-392.0,8.323e-05,2]
[424954303,1781345454000,-362.0,8.242e-05,2]
[424954305,1781345454000,-392.0,8.387e-05,2]
[424954307,1781345454000,-392.0,8.408e-05,2]
[424954306,1781345454000,-402.18969323,8.394e-05,2]
[424954316,1781345454000,-500.0,8.493e-05,2]
[424954315,1781345454000,-392.0,8.486e-05,2]
[424954308,1781345454000,-347.0,8.426e-05,2]
[424954309,1781345454000,-392.0,8.429e-05,2]
[424954322,1781345454000,-27140.06,8.548e-05,2]
[424954311,1781345454000,-250.0,8.446e-05,2]
[424954312,1781345454000,-377.0,8.452e-05,2]
[424954314,1781345454000,-362.0,8.463e-05,2]
[424954313,1781345454000,-360.66,8.463e-05,2]
[424954317,1781345454000,-377.0,8.5e-05,2]
[424954319,1781345454000,-377.0,8.507e-05,2]
[424954320,1781345454000,-500.0,8.516e-05,2]
[424954318,1781345454000,-362.0,8.5e-05,2]
[424954324,1781345454000,-342.04670984,8.554e-05,2]
[424954323,1781345454000,-255.0,8.554e-05,2]
[424954325,1781345454000,-300.0,8.556e-05,2]
[424954310,1781345454000,-193.0,8.446e-05,2]
[424954350,1781345454000,-171.70866965,8.87e-05,2]
[424954381,1781345454000,-433.0,9.41e-05,2]
[424954356,1781345454000,-282.22,8.893e-05,2]
[424954384,1781345454000,-151.0,9.516e-05,2]
[424954383,1781345454000,-151.0,9.516e-05,2]
[424954388,1781345454000,-150.0,9.602e-05,2]
[424954385,1781345454000,-1584.09539287,9.533e-05,2]
[424954389,1781345454000,-250.0,9.602e-05,2]
[424954387,1781345454000,-190.72,9.589e-05,2]
[424954390,1781345454000,-233.11,9.602e-05,2]
[424954386,1781345454000,-500.0,9.534e-05,2]
[424954352,1781345454000,-151.0,8.886e-05,2]
[424954393,1781345454000,-242.103,9.602e-05,2]
[424954382,1781345454000,-363.17124535,9.46e-05,2]
[424954391,1781345454000,-250.0,9.602e-05,2]
[424954400,1781345454000,-189.0,9.602e-05,2]
[424954399,1781345454000,-167.578,9.602e-05,2]
[424954398,1781345454000,-250.0,9.602e-05,2]
[424954396,1781345454000,-250.0,9.602e-05,2]
[424954397,1781345454000,-195.375,9.602e-05,2]
[424954401,1781345454000,-247.911,9.602e-05,2]
[424954402,1781345454000,-500.0,9.612e-05,2]
[424954405,1781345454000,-2170.741392,9.62e-05,2]
[424954403,1781345454000,-2191.569505,9.62e-05,2]
[424954404,1781345454000,-163.611461,9.62e-05,2]
[424954394,1781345454000,-167.753,9.602e-05,2]
[424954377,1781345454000,-176.038,9.26e-05,2]
[424954392,1781345454000,-248.277,9.602e-05,2]
[424954378,1781345454000,-163.25,9.278e-05,2]
[424954351,1781345454000,-167.02239708,8.88e-05,2]
[424954376,1781345454000,-1941.963,9.26e-05,2]
[424954354,1781345454000,-4976.3124026,8.889e-05,2]
[424954357,1781345454000,-250.0,8.944e-05,2]
[424954360,1781345454000,-10396.38845252,9.04e-05,2]
[424954359,1781345454000,-1000.0,8.971e-05,2]
[424954368,1781345454000,-3557.0,9.246e-05,2]
[424954358,1781345454000,-200.0,8.965e-05,2]
[424954366,1781345454000,-190.72,9.132e-05,2]
[424954362,1781345454000,-151.0,9.04e-05,2]
[424954363,1781345454000,-151.0,9.04e-05,2]
[424954361,1781345454000,-151.0,9.04e-05,2]
[424954364,1781345454000,-161.28,9.051e-05,2]
[424954365,1781345454000,-500.0,9.064e-05,2]
[424954370,1781345454000,-1275.0,9.246e-05,2]
[424954371,1781345454000,-383.0,9.246e-05,2]
[424954372,1781345454000,-1228.0,9.246e-05,2]
[424954373,1781345454000,-6076.0,9.246e-05,2]
[424954380,1781345454000,-360.66,9.403e-05,2]
[424954375,1781345454000,-2000.0,9.247e-05,2]
[424954374,1781345454000,-420.804,9.246e-05,2]
[424954379,1781345454000,-500.0,9.338e-05,2]
[424954369,1781345454000,-165.473,9.246e-05,2]
[424954434,1781345455000,-350.0,9.842e-05,2]
[424954452,1781345455000,-131.96150869,0.00010027,2]
[424954444,1781345455000,-572.71216125,0.0001,2]
[424954439,1781345455000,-500.0,9.95e-05,2]
[424954441,1781345455000,-1552.59574916,9.97e-05,2]
[424954440,1781345455000,-202.69763327,9.95e-05,2]
[424954436,1781345455000,-282.22,9.881e-05,2]
[424954437,1781345455000,-500.0,9.886e-05,2]
[424954435,1781345455000,-1493.45,9.846e-05,2]
[424954438,1781345455000,-350.0,9.92e-05,2]
[424954453,1781345455000,-190.72,0.00010046,2]
[424954455,1781345455000,-1493.45,0.0001008,2]
[424954445,1781345455000,-572.71216125,0.0001,2]
[424954447,1781345455000,-165.3243623,0.0001,2]
[424954448,1781345455000,-2121.83667668,0.0001,2]
[424954451,1781345455000,-3868.03849131,0.00010027,2]
[424954449,1781345455000,-1278.44777,0.0001,2]
[424954450,1781345455000,-616.63836232,0.0001,2]
[424954446,1781345455000,-572.71216125,0.0001,2]
[424954454,1781345455000,-5615.12,0.00010069,2]
[424954464,1781345455000,-1000.0,0.0001027,2]
[424954456,1781345455000,-9022.87525827,0.00010126,2]
[424954457,1781345455000,-500.0,0.0001016,2]
[424954442,1781345455000,-163.25,9.985e-05,2]
[424954443,1781345455000,-1055.39,0.0001,2]
[424954432,1781345455000,-234861.90915669,9.816e-05,2]
[424954418,1781345455000,-500.0,9.726e-05,2]
[424954427,1781345455000,-5030.5214566,9.816e-05,2]
[424954458,1781345455000,-1278.44778,0.000102,2]
[424954406,1781345455000,-9357.86812139,9.63e-05,2]
[424954409,1781345455000,-10612.23906298,9.664e-05,2]
[424954408,1781345455000,-482.23,9.657e-05,2]
[424954407,1781345455000,-59477.66409357,9.63e-05,2]
[424954411,1781345455000,-151.0,9.664e-05,2]
[424954413,1781345455000,-350.0,9.688e-05,2]
[424954410,1781345455000,-151.0,9.664e-05,2]
[424954412,1781345455000,-286.245694,9.664e-05,2]
[424954415,1781345455000,-500.0,9.726e-05,2]
[424954416,1781345455000,-500.0,9.726e-05,2]
[424954433,1781345455000,-350.0,9.836e-05,2]
[424954420,1781345455000,-500.0,9.726e-05,2]
[424954417,1781345455000,-500.0,9.726e-05,2]
[424954422,1781345455000,-500.0,9.726e-05,2]
[424954421,1781345455000,-500.0,9.726e-05,2]
[424954423,1781345455000,-269.40838366,9.726e-05,2]
[424954424,1781345455000,-482.23,9.727e-05,2]
[424954426,1781345455000,-482.23,9.792e-05,2]
[424954425,1781345455000,-350.0,9.757e-05,2]
[424954428,1781345455000,-155.450133,9.816e-05,2]
[424954431,1781345455000,-106678.91945742,9.816e-05,2]
[424954430,1781345455000,-151.0,9.816e-05,2]
[424954429,1781345455000,-151.0,9.816e-05,2]
[424954419,1781345455000,-500.0,9.726e-05,2]
[424954459,1781345455000,-2240.18,0.00010245,2]
[424954414,1781345455000,-151.3701495,9.723e-05,2]
[424954463,1781345455000,-350.0,0.00010268,2]
[424954491,1781345455000,-2033.41,0.00010375,2]
[424954492,1781345455000,-2033.4,0.0001039,2]
[424954495,1781345455000,-200.0,0.00010436,2]
[424954496,1781345455000,-200.0,0.00010436,2]
[424954494,1781345455000,-500.0,0.00010434,2]
[424954493,1781345455000,-1278.44778,0.000104,2]
[424954498,1781345455000,-200.0,0.00010436,2]
[424954499,1781345455000,-306.3,0.00010443,2]
[424954500,1781345455000,-306.3,0.00010444,2]
[424954508,1781345455000,-190.72,0.00010502,2]
[424954509,1781345455000,-350.0,0.00010505,3]
[424954489,1781345455000,-151.0,0.00010375,2]
[424954506,1781345455000,-9999.99,0.00010475,2]
[424954502,1781345455000,-689.24,0.00010471,2]
[424954504,1781345455000,-7013.52,0.00010475,2]
[424954505,1781345455000,-7372.33,0.00010475,2]
[424954507,1781345455000,-684.7016789,0.00010477,2]
[424954511,1781345455000,-176.57283503,0.00010506,2]
[424954513,1781345455000,-306.3,0.0001052,2]
[424954510,1781345455000,-306.3,0.00010505,2]
[424954515,1781345455000,-4000.0,0.00010529,2]
[424954512,1781345455000,-306.3,0.00010519,2]
[424954514,1781345455000,-350.0,0.00010523,2]
[424954462,1781345455000,-1493.45,0.00010259,2]
[424954501,1781345455000,-689.25,0.00010466,2]
[424954488,1781345455000,-350.0,0.00010374,3]
[424954503,1781345455000,-1072.19,0.00010473,2]
[424954497,1781345455000,-200.0,0.00010436,2]
[424954460,1781345455000,-746.72,0.00010246,2]
[424954490,1781345455000,-151.0,0.00010375,2]
[424954461,1781345455000,-500.0,0.00010247,2]
[424954465,1781345455000,-2000.0,0.00010274,2]
[424954467,1781345455000,-176.57283503,0.00010281,2]
[424954468,1781345455000,-176.57283503,0.00010281,2]
[424954466,1781345455000,-4000.0,0.00010278,2]
[424954471,1781345455000,-200.0,0.00010333,2]
[424954472,1781345455000,-150.0,0.00010333,2]
[424954474,1781345455000,-200.0,0.00010333,2]
[424954470,1781345455000,-1493.45,0.00010327,2]
[424954473,1781345455000,-1360.7820639,0.00010333,2]
[424954476,1781345455000,-150.0,0.00010333,2]
[424954469,1781345455000,-1493.45,0.00010302,2]
[424954486,1781345455000,-37510.79277183,0.00010362,2]
[424954487,1781345455000,-1125.99999999,0.00010364,2]
[424954475,1781345455000,-12955.41864814,0.00010333,2]
[424954482,1781345455000,-736.0,0.00010351,2]
[424954480,1781345455000,-1493.45,0.00010338,2]
[424954477,1781345455000,-7557.19361797,0.00010333,2]
[424954481,1781345455000,-360.66,0.00010344,2]
[424954483,1781345455000,-5615.13,0.00010357,2]
[424954479,1781345455000,-200.0,0.00010333,2]
[424954478,1781345455000,-200.0,0.00010333,2]
[424954485,1781345455000,-12406.92,0.00010362,2]
[424954484,1781345455000,-5615.12,0.00010358,2]
[424954553,1781345456000,-151.0,0.0001089,2]
[424954556,1781345456000,-1495.27058261,0.000109,2]
[424954554,1781345456000,-151.0,0.0001089,2]
[424954546,1781345456000,-1278.44778,0.000108,2]
[424954547,1781345456000,-1493.45,0.00010824,2]
[424954551,1781345456000,-350.0,0.00010873,2]
[424954550,1781345456000,-2289.0733,0.0001087,2]
[424954555,1781345456000,-620.0,0.000109,2]
[424954548,1781345456000,-1493.45,0.00010854,2]
[424954552,1781345456000,-1493.45,0.00010882,2]
[424954549,1781345456000,-282.22,0.00010869,2]
[424954558,1781345456000,-1495.27058256,0.000109,2]
[424954572,1781345456000,-500.0,0.00010958,2]
[424954568,1781345456000,-500.0,0.00010958,6]
[424954557,1781345456000,-1495.27058256,0.000109,2]
[424954559,1781345456000,-1000.0,0.000109,2]
[424954560,1781345456000,-1495.27058256,0.000109,2]
[424954561,1781345456000,-1493.45,0.0001091,2]
[424954562,1781345456000,-4976.3124026,0.00010923,2]
[424954563,1781345456000,-1493.45,0.00010936,2]
[424954566,1781345456000,-500.0,0.00010958,4]
[424954565,1781345456000,-500.0,0.00010958,3]
[424954564,1781345456000,-500.0,0.00010958,2]
[424954570,1781345456000,-500.0,0.00010958,8]
[424954545,1781345456000,-1493.45,0.00010791,2]
[424954567,1781345456000,-500.0,0.00010958,5]
[424954542,1781345456000,-200.0,0.00010753,2]
[424954517,1781345456000,-1233.63,0.00010538,2]
[424954539,1781345456000,-200.0,0.00010753,2]
[424954521,1781345456000,-200.0,0.00010541,2]
[424954578,1781345456000,-500.0,0.00010958,2]
[424954518,1781345456000,-10210.83,0.00010538,2]
[424954519,1781345456000,-306.3,0.00010539,2]
[424954520,1781345456000,-200.0,0.00010541,2]
[424954523,1781345456000,-200.0,0.00010541,2]
[424954524,1781345456000,-66155.45,0.00010559,2]
[424954522,1781345456000,-200.0,0.00010541,2]
[424954526,1781345456000,-802.18629117,0.0001057,2]
[424954525,1781345456000,-1000.0,0.0001057,2]
[424954528,1781345456000,-1278.44778,0.000106,2]
[424954529,1781345456000,-1116.14780435,0.0001063,2]
[424954532,1781345456000,-200.0,0.00010646,2]
[424954527,1781345456000,-403.873124,0.00010587,7]
[424954531,1781345456000,-200.0,0.00010646,2]
[424954530,1781345456000,-176.57283503,0.0001064,2]
[424954534,1781345456000,-200.0,0.00010646,2]
[424954544,1781345456000,-4000.0,0.00010779,2]
[424954533,1781345456000,-200.0,0.00010646,2]
[424954543,1781345456000,-1493.45,0.00010757,2]
[424954538,1781345456000,-350.0,0.00010745,2]
[424954536,1781345456000,-500.0,0.00010708,2]
[424954535,1781345456000,-1493.45,0.00010677,2]
[424954540,1781345456000,-200.0,0.00010753,2]
[424954537,1781345456000,-1493.45,0.00010719,2]
[424954541,1781345456000,-200.0,0.00010753,2]
[424954579,1781345456000,-500.0,0.00010958,2]
[424954516,1781345456000,-674.31,0.00010538,2]
[424954573,1781345456000,-500.0,0.00010958,2]
[424954603,1781345456000,-2000.0,0.00010989,2]
[424954613,1781345456000,-288.01,0.00010989,2]
[424954614,1781345456000,-150.0,0.00010989,2]
[424954606,1781345456000,-2000.0,0.00010989,2]
[424954605,1781345456000,-2000.0,0.00010989,2]
[424954609,1781345456000,-1322.54,0.00010989,2]
[424954607,1781345456000,-458.96,0.00010989,2]
[424954608,1781345456000,-498.71,0.00010989,2]
[424954611,1781345456000,-243.65,0.00010989,2]
[424954612,1781345456000,-272.95,0.00010989,2]
[424954610,1781345456000,-166.51,0.00010989,2]
[424954615,1781345456000,-519.98,0.00010989,2]
[424954622,1781345456000,-280.01,0.00011,2]
[424954623,1781345456000,-218.77,0.00011,2]
[424954620,1781345456000,-1160.64,0.00011,2]
[424954618,1781345456000,-255.05,0.00010989,2]
[424954616,1781345456000,-359.95,0.00010989,2]
[424954617,1781345456000,-610.44,0.00010989,2]
[424954624,1781345456000,-215.3,0.00011,2]
[424954621,1781345456000,-837.46,0.00011,2]
[424954619,1781345456000,-373.28,0.00011,2]
[424954625,1781345456000,-23790.87401836,0.00011,2]
[424954629,1781345456000,-442.66793665,0.00011008,2]
[424954627,1781345456000,-908.38661721,0.00011,2]
[424954626,1781345456000,-346.03146956,0.00011,2]
[424954604,1781345456000,-2000.0,0.00010989,2]
[424954601,1781345456000,-1436.69,0.00010989,2]
[424954628,1781345456000,-370.06116279,0.00011,2]
[424954598,1781345456000,-500.0,0.0001097,2]
[424954599,1781345456000,-500.0,0.00010982,2]
[424954576,1781345456000,-500.0,0.00010958,2]
[424954575,1781345456000,-500.0,0.00010958,2]
[424954577,1781345456000,-500.0,0.00010958,2]
[424954571,1781345456000,-500.0,0.00010958,9]
[424954574,1781345456000,-500.0,0.00010958,3]
[424954580,1781345456000,-500.0,0.00010958,2]
[424954581,1781345456000,-200.0,0.00010959,2]
[424954582,1781345456000,-200.0,0.00010959,2]
[424954586,1781345456000,-151.0,0.00010959,2]
[424954585,1781345456000,-151.0,0.00010959,2]
[424954584,1781345456000,-1352.32,0.00010959,2]
[424954583,1781345456000,-200.0,0.00010959,2]
[424954569,1781345456000,-500.0,0.00010958,7]
[424954588,1781345456000,-166.66,0.00010959,2]
[424954593,1781345456000,-1000.0,0.0001097,2]
[424954595,1781345456000,-1000.0,0.0001097,2]
[424954587,1781345456000,-154.309099,0.00010959,2]
[424954596,1781345456000,-500.0,0.0001097,2]
[424954591,1781345456000,-190.72,0.00010959,2]
[424954602,1781345456000,-489.21,0.00010989,2]
[424954597,1781345456000,-500.0,0.0001097,2]
[424954592,1781345456000,-1493.45,0.00010961,2]
[424954594,1781345456000,-1000.0,0.0001097,2]
[424954590,1781345456000,-150.0,0.00010959,2]
[424954589,1781345456000,-150.0,0.00010959,2]
[424954600,1781345456000,-1493.45,0.00010985,2]
[424954634,1781345457000,-1630.79919973,0.0001103,2]
[424954630,1781345457000,-528.12118031,0.00011008,2]
[424954633,1781345457000,-110.96764943,0.0001103,2]
[424954631,1781345457000,-522.66088304,0.00011008,2]
[424954638,1781345457000,-166.66,0.00011068,2]
[424954635,1781345457000,-2369.20080027,0.0001103,2]
[424954637,1781345457000,-304.46569766,0.00011052,2]
[424954636,1781345457000,-1188.98430234,0.00011052,2]
[424954639,1781345457000,-293.65363985,0.00011073,2]
[424954632,1781345457000,-1382.48235057,0.0001103,2]
[424954644,1781345459000,-1199.79636015,0.00011073,2]
[424954640,1781345459000,-500.0,7.677e-05,2]
[424954643,1781345459000,-160.0,8.144e-05,2]
[424954642,1781345459000,-230.80436875,7.677e-05,2]
[424954641,1781345459000,-500.0,7.677e-05,2]
[424954646,1781345459000,-300.0,0.00011098,2]
[424954645,1781345459000,-1493.45,0.00011093,2]
[424954650,1781345459000,-4239.75966366,0.00011099,2]
[424954648,1781345459000,-300.0,0.00011098,2]
[424954649,1781345459000,-10799.91440546,0.00011099,2]
[424954647,1781345459000,-300.0,0.00011098,2]
[424954653,1781345460000,-16335.77009048,0.00011099,2]
[424954654,1781345460000,-302.0,0.00011099,2]
[424954651,1781345460000,-500.0,9.246e-05,2]
[424954652,1781345460000,-3144.0,9.246e-05,2]
[424954655,1781345505000,-467.2968,7.677e-05,2]
[424954656,1781345716000,-150.0,7.677e-05,2]
[424954657,1781345770000,-377.83744154,7.677e-05,2]
[424954658,1781345824000,-158.74,7.607e-05,2]
[424954659,1781345877000,-176.71135637,7.639e-05,2]
[424954660,1781345930000,-173.34056836,7.639e-05,2]
[424954661,1781345984000,-250.0,7.677e-05,2]
[424954662,1781346037000,-1751.46,7.678e-05,2]
[424954663,1781346061000,-1751.46,7.678e-05,2]
[424954664,1781346062000,-10000.0,7.678e-05,2]
[424954665,1781346084000,-1230.80436875,7.678e-05,2]
[424954666,1781346085000,-10000.0,7.578e-05,2]
[424954669,1781346086000,-5846.02,7.578e-05,2]
[424954667,1781346086000,-10000.0,7.578e-05,2]
[424954668,1781346086000,-10000.0,7.578e-05,2]
[424954670,1781346086000,-4153.98,7.678e-05,2]
[424954676,1781346108000,-10000.0,7.678e-05,2]
[424954675,1781346108000,-8769.19563125,7.678e-05,2]
[424954673,1781346108000,-500.0,7.677e-05,2]
[424954674,1781346108000,-230.80436875,7.677e-05,2]
[424954672,1781346108000,-500.0,7.677e-05,2]
[424954671,1781346108000,-1230.80436875,7.678e-05,2]
[424954678,1781346109000,-10000.0,7.678e-05,2]
[424954677,1781346109000,-10000.0,7.678e-05,2]
[424954679,1781346110000,-10000.0,7.678e-05,2]
[424954680,1781346111000,-10000.0,7.678e-05,2]
[424954681,1781346112000,-10000.0,7.678e-05,2]
[424954682,1781346113000,-10000.0,7.678e-05,2]
[424954683,1781346114000,-10000.0,7.678e-05,2]
[424954684,1781346114000,-10000.0,7.678e-05,2]
[424954685,1781346115000,-10000.0,7.678e-05,2]
[424954686,1781346116000,-10000.0,7.678e-05,2]
[424954687,1781346117000,-10000.0,7.678e-05,2]
[424954688,1781346120000,-10000.0,7.678e-05,2]
[424954690,1781346213000,-10000.0,7.678e-05,2]
[424954696,1781346214000,-500.0,7.677e-05,2]
[424954697,1781346214000,-7202.83764576,7.678e-05,2]
[424954695,1781346214000,-500.0,7.677e-05,2]
[424954694,1781346214000,-500.0,7.677e-05,2]
[424954693,1781346214000,-500.0,7.677e-05,2]
[424954692,1781346214000,-297.16235424,7.677e-05,2]
[424954691,1781346214000,-500.0,7.677e-05,2]
[424954698,1781346215000,-532.07705167,7.677e-05,2]
[424954699,1781346215000,-9467.92294833,7.678e-05,2]
[424954700,1781346216000,-10000.0,7.678e-05,2]
[424954701,1781346217000,-10000.0,7.678e-05,2]
[424954702,1781346253000,1157.8864092,0.00020606,64]
[424954703,1781346269000,-252.0,7.678e-05,2]
[424954705,1781346287000,-10000.0,7.678e-05,2]
[424954704,1781346287000,-10000.0,7.678e-05,2]
[424954706,1781346288000,-10000.0,7.678e-05,2]
[424954708,1781346309000,-10000.0,7.678e-05,2]
[424954707,1781346309000,-5507.48,7.678e-05,2]
[424954709,1781346333000,-5507.48,7.678e-05,2]
[424954710,1781346334000,-9850.0,7.678e-05,2]
[424954711,1781346356000,-1433.43741035,7.678e-05,2]
[424954712,1781346357000,-10000.0,7.678e-05,2]
[424954715,1781346357000,-10000.0,7.678e-05,2]
[424954714,1781346357000,-10000.0,7.678e-05,2]
[424954713,1781346357000,-10000.0,7.678e-05,2]
[424954716,1781346358000,-10000.0,7.678e-05,2]
[424954717,1781346381000,-1433.43741035,7.678e-05,2]
[424954721,1781346382000,-10000.0,7.678e-05,2]
[424954720,1781346382000,-10000.0,7.678e-05,2]
[424954719,1781346382000,-10000.0,7.678e-05,2]
[424954718,1781346382000,-10000.0,7.678e-05,2]
[424954722,1781346403000,-1433.43741035,7.678e-05,2]
[424954723,1781346404000,-10000.0,7.678e-05,2]
[424954724,1781346428000,-1433.43741035,7.678e-05,2]
[424954725,1781346450000,-472.49985704,7.677e-05,2]
[424954726,1781346451000,-289.0,7.677e-05,2]
[424954727,1781346476000,-10000.0,7.578e-05,2]
[424954728,1781346478000,-10000.0,7.578e-05,2]
[424954729,1781346502000,-176.71135637,7.54e-05,2]
[424954730,1781346503000,-4000.0,7.578e-05,2]
[424954731,1781346524000,222.36130197,0.00010137,30]
[424954732,1781346556000,-330.74989993,7.577e-05,2]
[424954734,1781346561000,-500.0,7.577e-05,2]
[424954733,1781346561000,-500.0,7.577e-05,2]
[424954736,1781346561000,-500.0,7.577e-05,2]
[424954735,1781346561000,-500.0,7.577e-05,2]
[424954738,1781346561000,-243.10770516,7.577e-05,2]
[424954740,1781346561000,-160.0,7.577e-05,2]
[424954739,1781346561000,-150.0,7.577e-05,2]
[424954741,1781346561000,-37809.64849484,7.578e-05,2]
[424954737,1781346561000,-500.0,7.577e-05,2]
[424954743,1781346583000,-250.0,7.578e-05,2]
[424954742,1781346583000,-150.0,7.577e-05,2]
[424954744,1781346610000,-1345.29671232,7.578e-05,2]
[424954754,1781346633000,-430.74507727,7.577e-05,2]
[424954753,1781346633000,-500.0,7.577e-05,2]
[424954755,1781346633000,-171.93780308,7.577e-05,2]
[424954756,1781346633000,-500.0,7.577e-05,2]
[424954758,1781346633000,-405.67953625,7.577e-05,2]
[424954759,1781346633000,-500.0,7.577e-05,2]
[424954757,1781346633000,-94.32046375,7.577e-05,2]
[424954763,1781346633000,-197.18659827,7.577e-05,2]
[424954762,1781346633000,-133.0597272,7.577e-05,2]
[424954765,1781346633000,-120.11025436,7.577e-05,2]
[424954766,1781346633000,-208.90774637,7.577e-05,2]
[424954761,1781346633000,-353.99080792,7.577e-05,2]
[424954760,1781346633000,-437.71702759,7.577e-05,2]
[424954764,1781346633000,-150.0,7.577e-05,2]
[424954779,1781346634000,-9999.99,7.956e-05,2]
[424954782,1781346634000,-3281.81592286,7.956e-05,2]
[424954773,1781346634000,-160.0,7.708e-05,2]
[424954772,1781346634000,-216.029201,7.708e-05,2]
[424954770,1781346634000,-971.03912997,7.678e-05,2]
[424954771,1781346634000,-1369.4033579,7.678e-05,2]
[424954769,1781346634000,-1000.0,7.677e-05,2]
[424954768,1781346634000,-157.0,7.653e-05,2]
[424954767,1781346634000,-363085.93389284,7.578e-05,2]
[424954781,1781346634000,-9999.99,7.956e-05,2]
[424954774,1781346634000,-157.0,7.728e-05,2]
[424954776,1781346634000,-299.99,7.804e-05,2]
[424954788,1781346634000,-278.52586619,7.971e-05,2]
[424954777,1781346634000,-157.0,7.88e-05,2]
[424954792,1781346634000,-7229.02546749,7.971e-05,2]
[424954791,1781346634000,-1007.20717236,7.971e-05,2]
[424954780,1781346634000,-150.99,7.956e-05,2]
[424954790,1781346634000,-1075.43,7.971e-05,2]
[424954787,1781346634000,-2507.39531281,7.971e-05,2]
[424954789,1781346634000,-316.11449079,7.971e-05,2]
[424954786,1781346634000,-3057.7273,7.971e-05,2]
[424954785,1781346634000,-999.99,7.956e-05,2]
[424954783,1781346634000,-6718.17407714,7.956e-05,2]
[424954778,1781346634000,-157.0,7.956e-05,2]
[424954775,1781346634000,-157.0,7.804e-05,2]
[424954784,1781346634000,-1633.07,7.956e-05,2]
[424954795,1781346638000,-299.99,7.577e-05,2]
[424954801,1781346639000,-1205.59526029,7.971e-05,2]
[424954800,1781346639000,-6378.0134844,7.971e-05,2]
[424954798,1781346639000,-500.0,7.577e-05,2]
[424954799,1781346639000,-9771.7,7.804e-05,2]
[424954797,1781346639000,-500.0,7.577e-05,2]
[424954796,1781346639000,-200.01,7.577e-05,2]
[424954805,1781346640000,-775.67129044,7.971e-05,2]
[424954813,1781346643000,-11317.53180314,7.971e-05,2]
[424954819,1781346646000,-503.9771659,7.971e-05,2]
[424954821,1781346646000,-1219.19352263,7.971e-05,2]
[424954820,1781346646000,-1473.33721193,7.971e-05,2]
[424954818,1781346646000,-28719.28097827,7.971e-05,2]
[424954864,1781346841000,-172.44,7.192e-05,2]
[424954865,1781346895000,-150.0,7.335e-05,2]
[424954866,1781346948000,-593.04648404,7.476e-05,2]
[424954867,1781347001000,-500.0,7.476e-05,2]
[424954868,1781347055000,-500.0,7.475e-05,2]
[424954869,1781347109000,-500.0,7.475e-05,2]
[424954871,1781347117000,500.0,7.474e-05,2]
[424954870,1781347117000,500.0,7.474e-05,2]
[424954872,1781347117000,500.0,7.474e-05,2]
[424954873,1781347117000,500.0,7.474e-05,2]
[424954874,1781347117000,500.0,7.474e-05,2]
[424954875,1781347117000,500.0,7.474e-05,2]
[424954876,1781347117000,500.0,7.474e-05,2]
[424954879,1781347117000,500.0,7.474e-05,2]
[424954877,1781347117000,500.0,7.474e-05,2]
[424954882,1781347117000,500.0,7.474e-05,2]
[424954881,1781347117000,500.0,7.474e-05,2]
[424954884,1781347117000,500.0,7.474e-05,2]